Cogmind - Beta 13 @@@ ROGUE MODE // 2024.04.07 @ 20:54:00 Player: Ben Meat Bible Result: Destroyed by L-31 Rogue with Katana Performance ------------- Evolutions (1) 500 Regions Visited (3) 600 Robots Destroyed (11) 55 Value Destroyed (289) 289 Prototype IDs (0) 0 Alien Tech Used (0) 0 Bonus (0) 0 TOTAL SCORE: 1444 Bonus ------- None Cogmind --------- Core Integrity 0/400 Matter 290/400 Energy 99/100 System Corruption 2% Temperature Cool (0) Movement Walking (120) Location -9/Materials Parts ------- > --- POWER (1) -------- (None) > --- PROPULSION (4) --- Improved Aluminum Leg > --- UTILITY (2) ------ Small Storage Unit Medium Matter Pod > --- WEAPON (2) ------- Assault Rifle > --- INVENTORY (8) ---- (None) Peak State ------------ > --- POWER ------------ Light Nuclear Core > --- PROPULSION ------- Aluminum Leg Aluminum Leg Aluminum Leg Aluminum Leg > --- UTILITY ---------- Small Storage Unit Medium Matter Pod > --- WEAPON ----------- Particle Gun Light Cannon > --- INVENTORY -------- Ion Engine Aluminum Leg Assault Rifle Datajack [Rating: 12] Favorites ----------- Power Light Nuclear Core Engine Ion Engine Power Core Light Nuclear Core Propulsion Aluminum Leg Leg Aluminum Leg Wheel Compact Wheel Utility Small Storage Unit Device Terrain Scanner Storage Small Storage Unit Weapon Light Cannon Energy Gun Particle Gun Ballistic Gun Assault Rifle Ballistic Cannon Light Cannon Special Melee Weapon Datajack Build | -11 -10 -10 -9 ------- Run | Yrd Mat Min Mat Slots Evolved 2 | . . . 2 Power . | . . . . Propulsion 2 | . . . 2 Utility . | . . . . Weapon . | . . . . Parts Attached 27 | 8 8 2 9 Power 3 | 1 1 . 1 Engine 2 | 1 . . 1 Core 1 | . 1 . . Reactor . | . . . . Propulsion 11 | 4 1 2 4 Treads . | . . . . Leg 9 | 2 1 2 4 Wheel 2 | 2 . . . Hover . | . . . . Flight . | . . . . Utility 6 | 1 4 . 1 Device 1 | . 1 . . Storage 5 | 1 3 . 1 Processor . | . . . . Hackware . | . . . . Protection . | . . . . Artifact . | . . . . Weapon 7 | 2 2 . 3 Energy Gun 1 | . 1 . . Energy Cannon . | . . . . Ballistic Gun 3 | 2 . . 1 Ballistic Cannon 2 | . 1 . 1 Launcher . | . . . . Special Weapon . | . . . . Impact Weapon . | . . . . Slashing Weapon . | . . . . Piercing Weapon . | . . . . Special Melee Weapon 1 | . . . 1 Unidentified Prototypes . | . . . . Parts Lost 9 | . . . 9 Power 2 | . . . 2 Propulsion 5 | . . . 5 Utility . | . . . . Weapon 2 | . . . 2 Highest Loss Streak 6 | . . . 6 To Critical Strikes 1 | . . . 1 Average Slot Usage (%) 91 | . 99 100 73 Engine 3 | . 7 . 1 Core 8 | . 6 14 4 Leg 30 | . 28 28 35 Storage 22 | . 25 28 13 Energy Gun 7 | . 5 14 2 Ballistic Gun 7 | . 21 . 1 Ballistic Cannon 7 | . . 14 6 Special Melee Weapon 2 | . . . 7 Naked Turns . | . . . . Heaviest Build 18 | 13 18 18 18 Greatest Support 40 | 26 20 20 40 Greatest Overweight (x) 4 | 1 . . 4 Average Overweight (x) . | . . . . Largest Inventory Capacity 8 | 8 8 8 8 Average Capacity 7 | 6 7 8 5 Most Carried 6 | 2 5 5 6 Average Carried 2 | . 1 3 3 Final Capacity 8 | 8 8 8 8 Final Carried 5 | . 3 5 . Class Distribution -------------------- 80% | Mutant 19% | Scavenger-Mutant Dominant Class ---------------- Mutant | -10/Materials Mutant | -10/Mines Mutant | -9/Materials Resources | -11 -10 -10 -9 ----------- Run | Yrd Mat Min Mat Matter Collected 598 | 226 197 89 86 Remotely . | . . . . Salvage Created 322 | . 172 73 77 Parts 26 | . 15 5 6 Haulers Intercepted 1 | . . . 1 Recyclers Shooed . | . . . . Parts Field Recycled . | . . . . Retrieved Matter . | . . . . Parts Self-Destructed . | . . . . Prevented . | . . . . Kills | -11 -10 -10 -9 ------- Run | Yrd Mat Min Mat Combat Hostiles Destroyed 9 | . 5 2 2 Guns 5 | . 5 . . Cannons 4 | . . 2 2 Classes Destroyed 5 | . 3 . 2 Hauler 1 | . . . 1 Watcher 1 | . 1 . . Swarmer 3 | . 2 . 1 Grunt 5 | . 3 2 . Sentry 1 | . . . 1 Best Kill Streak 2 | . 2 2 1 Combat Bots Only 2 | . 2 2 1 Max Kills in Single Turn 1 | . 1 1 1 Gunslinging . | . . . . Exploded . | . . . . Melee . | . . . . Uniques/NPCs Destroyed . | . . . . Combat | -11 -10 -10 -9 -------- Run | Yrd Mat Min Mat Hostile Shots Fired 150 | . 25 7 118 Missed 46 | . 8 1 37 Damage Taken 1236 | . 197 84 955 Core 426 | . . 26 400 Absorbed by Shields . | . . . . Core Remaining (%) 94 | 100 . 89 . Volleys Fired 49 | . 22 5 22 Largest 2 | . 2 2 1 Hottest 100 | . 100 100 35 Shots Fired 76 | . 44 10 22 Gun 50 | . 43 5 2 Cannon 26 | . 1 5 20 Launcher . | . . . . Special . | . . . . Kinetic 67 | . 40 5 22 Thermal 9 | . 4 5 . Explosive . | . . . . Electromagnetic . | . . . . Robot Hit Streak 8 | . 8 3 4 Robot Miss Streak 4 | . 4 4 3 Penetration Max . | . . . . Secondary Targets 1 | . 1 . . Max Gunslinging Chain 1 | . 1 . . Shots Hit Robots 46 | . 22 5 19 Core Hits 20 | . 11 2 7 Critical Kills . | . . . . Critical Parts Destroyed . | . . . . Critical Strikes 3 | . . 2 1 Blast 3 | . . 2 1 Melee Attacks 9 | . . . 9 Impact . | . . . . Slashing . | . . . . Piercing . | . . . . Sneak Attacks 3 | . . . 3 Combat Hostiles . | . . . . Follow-up Attacks . | . . . . Damage Inflicted 559 | . 254 85 220 Guns 279 | . 254 15 10 Cannons 258 | . . 70 188 Explosions . | . . . . Melee . | . . . . Ramming 22 | . . . 22 Kinetic 487 | . 219 70 198 Thermal 50 | . 35 15 . Explosive . | . . . . Electromagnetic . | . . . . Impact . | . . . . Slashing . | . . . . Piercing . | . . . . Highest Corruption 3 | . 3 3 2 Average Corruption 2 | . 2 3 2 Corruption Purged . | . . . . Corruption Blocked . | . . . . Effects 6 | . . 6 . Message Errors 4 | . . 4 . Energy Discharges 1 | . . 1 . Data Loss (minor) 1 | . . 1 . Overload Shots . | . . . . Overflow Damage . | . . . . Projectiles . | . . . . Explosions . | . . . . Melee . | . . . . Knockbacks 3 | . . 2 1 Impact . | . . . . Kinetic 3 | . . 2 1 Secondary . | . . . . Self-Inflicted Damage 9 | . . . 9 Shots . | . . . . Rammed 6 | . . . 6 Targets Rammed 6 | . . . 6 Kicked . | . . . . Crushed . | . . . . Highest Temperature 260 | . 90 260 5 Average Temperature 69 | . 26 129 3 Received Heat Transfer 330 | . 84 51 195 Siege Activations . | . . . . Robots Corrupted . | . . . . Combat Hostiles . | . . . . Parts Fried . | . . . . Impact Corruptions . | . . . . Robots Melted . | . . . . Combat Hostiles . | . . . . Parts Melted . | . . . . Heat Transferred 111 | . 74 37 . Parts Sabotaged . | . . . . Parts Stolen . | . . . . Parts Stripped . | . . . . Power Chain Reactions . | . . . . Alert | -11 -10 -10 -9 ------- Run | Yrd Mat Min Mat Peak Influence 197 | . 197 126 125 Initial 76 | . . 76 48 Average 80 | . 104 95 72 Maximum Alert Level . | . . . . Low Security (%) 100 | 100 100 100 100 Level 1 . | . . . . Level 2 . | . . . . Level 3 . | . . . . Level 4 . | . . . . Level 5 . | . . . . High Security . | . . . . Max Security . | . . . . Squads Dispatched 1 | . 1 . . Investigation . | . . . . Extermination . | . . . . Reinforcement 1 | . 1 . . Assault . | . . . . Garrison . | . . . . Intercept . | . . . . Searches Triggered . | . . . . Construction Impeded . | . . . . Haulers Reinforced . | . . . . Active Scanning Responses . | . . . . Cargo Convoy Interrupts . | . . . . Stealth | -11 -10 -10 -9 --------- Run | Yrd Mat Min Mat Distress Signals 3 | . 1 . 2 Communications Jammed . | . . . . Distress Signals . | . . . . Times Spotted 27 | . 10 2 15 Peak Tracking Total 12 | . 5 2 12 Tactical Retreats 2 | . 1 . 1 Traps | -11 -10 -10 -9 ------- Run | Yrd Mat Min Mat Traps Triggered 2 | . 2 . . Indirectly . | . . . . Trap Hack Attempts . | . . . . Triggered . | . . . . Disarmed . | . . . . Reprogrammed . | . . . . Reused . | . . . . Traps Extracted . | . . . . Installed . | . . . . Triggered . | . . . . Machines | -11 -10 -10 -9 ---------- Run | Yrd Mat Min Mat Machines Disabled . | . . . . Max in Single Turn . | . . . . Machines Repaired . | . . . . Machines Dismantled . | . . . . Machines Sabotaged . | . . . . Overloaded Fab Kills . | . . . . Hacking | -11 -10 -10 -9 --------- Run | Yrd Mat Min Mat Machines Accessed 2 | . 2 . . Terminals 1 | . 1 . . Fabricators . | . . . . Repair Stations . | . . . . Recycling Units 1 | . 1 . . Scanalyzers . | . . . . Garrison Access . | . . . . Total Hacks 5 | . 5 . . Successful 2 | . 2 . . Failed 3 | . 3 . . Catastrophic 1 | . 1 . . Database Lockouts . | . . . . Manual . | . . . . Terminals 4 | . 4 . . Fabricators . | . . . . Repair Stations . | . . . . Recycling Units 1 | . 1 . . Scanalyzers . | . . . . Garrison Access . | . . . . Terminal Hacks 1 | . 1 . . Alert Level 1 | . 1 . . Fabricator Hacks . | . . . . Repair Station Hacks . | . . . . Recycling Unit Hacks 1 | . 1 . . Process 1 | . 1 . . Scanalyzer . | . . . . Garrison Access Hacks . | . . . . Unauthorized Hacks . | . . . . Terminals . | . . . . Fabricators . | . . . . Repair Stations . | . . . . Recycling Units . | . . . . Scanalyzers . | . . . . Garrison Access . | . . . . Data Cores Recovered . | . . . . Used . | . . . . Hacking Detections 1 | . 1 . . Full Trace Events . | . . . . Feedback Events . | . . . . Feedback Blocked . | . . . . Robot Schematics Acquired . | . . . . Robots Built . | . . . . Authchips . | . . . . Time . | . . . . Total Robot Build Rating . | . . . . Part Schematics Acquired . | . . . . Parts Built . | . . . . Authchips . | . . . . Time . | . . . . Total Part Build Rating . | . . . . Parts Repaired . | . . . . Time . | . . . . Parts Recycled . | . . . . Recycled Matter . | . . . . Retrieved Matter . | . . . . Retrieved Components . | . . . . Parts Scanalyzed . | . . . . Part Schematics Acquired . | . . . . Parts Damaged . | . . . . Bothacking | -11 -10 -10 -9 ------------ Run | Yrd Mat Min Mat Used RIF Installer . | . . . . Robots Hacked 4 | . . . 4 Non-combat 1 | . . . 1 Combat 3 | . . . 3 Robot Hacks Applied 4 | . . . 4 parse_system 3 | . . . 3 no_distress 1 | . . . 1 Relay Couplers Released . | . . . . Fabnet Peak Effective % . | . . . . Robots Rewired . | . . . . Allies Hacked . | . . . . Hacks Repelled . | . . . . Allies | -11 -10 -10 -9 -------- Run | Yrd Mat Min Mat Total Allies . | . . . . Largest Group . | . . . . Highest-Rated Group . | . . . . Highest-Rated Ally . | . . . . Total Orders . | . . . . Ally Attacks . | . . . . Total Damage . | . . . . Kills . | . . . . Allies Corrupted . | . . . . Allies Melted . | . . . . Intel | -11 -10 -10 -9 ------- Run | Yrd Mat Min Mat Robot Analysis Total . | . . . . Derelict Logs Recovered 1 | . . 1 . Drone Launches . | . . . . Drone Recoveries . | . . . . Exploration | -11 -10 -10 -9 ------------- Run | Yrd Mat Min Mat Turns Passed 1039 | 122 308 342 267 Spaces Moved 703 | 103 181 269 150 Core 29 | 23 . . 6 Treads . | . . . . Legs 667 | 73 181 269 144 Wheels 7 | 7 . . . Hover . | . . . . Flight . | . . . . Fastest Speed 50 | 50 120 120 50 Average Speed 119 | 105 120 120 125 Slowest Speed 250 | 120 120 120 250 Overloaded Moves . | . . . . Propulsion Burnouts . | . . . . Robots Hopped . | . . . . Cave-ins Triggered . | . . . . Exploration Rate (%) 29 | 6 29 71 12 Regions Visited 3 Branch Regions 1 Pre-discovered Areas . | . . . . Known Exits Taken . | . . . . Unknown Exits Taken 3 | 1 1 1 . Scrap Searched 1 | . . 1 . Spaces Dug . | . . . . Terrain Destroyed . | . . . . Melee . | . . . . Projectile . | . . . . AOE . | . . . . Terrain Rammed . | . . . . Walls Destroyed . | . . . . Machines Disabled . | . . . . Actions | -11 -10 -10 -9 --------- Run | Yrd Mat Min Mat Total 827 | 115 230 277 205 Wait 13 | . 11 . 2 Move 700 | 102 180 268 150 Hop . | . . . . Pick Up 11 | 1 5 2 3 Fast Attach 10 | 7 2 . 1 Attach 10 | 1 1 . 8 Detach 4 | 2 1 . 1 Swap 7 | . 5 2 . Drop 8 | 2 3 . 3 Fire 49 | . 22 5 22 Melee 9 | . . . 9 Ram 6 | . . . 6 Kick . | . . . . Crush . | . . . . Escape Stasis . | . . . . Rewire . | . . . . Trap . | . . . . Miscellaneous . | . . . . Route ------- -11/Scrapyard -10/Materials -10/Mines -9/Materials (discovered 2 exits: Mat x2) History --------- Turn | Location | Event 26 | -11/Scrapyard | Discovered new exit (range 15) 123 | -11/Scrapyard | Entered Materials 266 | -10/Materials | Discovered new exit (range 15) 323 | -10/Materials | Build established: Mutant 431 | -10/Materials | Entered Mines 455 | -10/Mines | Met a Derelict bent on vengeance 490 | -10/Mines | Learned location of 2 exits from Materials 763 | -10/Mines | Discovered new exit (range 10) 773 | -10/Mines | Entered Materials 773 | -9/Materials | Evolved 2 slots: Propulsion x2 774 | -9/Materials | Identified exit to Materials 993 | -9/Materials | Core integrity fell below 50% 1021 | -9/Materials | Lost 6 parts (4n2w) 1031 | -9/Materials | Core integrity fell below 20% 1040 | -9/Materials | Destroyed by L-31 Rogue with Katana Last Messages --------------- Slammed into W-16 Scout. Destabilizing: System corrupted (+2). Slammed into W-16 Scout. Acquired 4 matter. S-10 Pest destroyed. Aluminum Leg destroyed. Acquired Imp. Aluminum Leg. Ion Engine destroyed. Neutrino Reactor explodes. G-34 Mercenary destroyed. Neutrino Reactor explodes. G-34 Mercenary destroyed. S-10 Pest destroyed. Chain reaction triggered in Corrupted Lgt. Ion Engine. Terminal disabled. G-34 Mercenary destroyed. Y-45 Defender destroyed. Door malfunctions. G-34 Mercenary destroyed. Door malfunctions. Map ----- +----------------------------------------------------+ | ??????????# ????????????? | | ??????????# ????????????? | | ??????????########## #####+#####???????????????? | | ???????????????????# #?????????????????????????? | | ???????????????????# #?????????????????????????? | | ???????????????????# #?????????????????????????? | | ???????????????????# #?????????????????????????? | | ???????????????????# #?????????????????????????? | | ???????????????????# #???????????????? ??????? | | ???????????????????# #???????????????? ??????? | | ???????????????????# #???????????????? ??????? | | ???????????????????# #???????????????? #?????? | | ???????????????????# #???????????????? #?????? | | ???????????????????# #???????????????? #?????? | | ???????????????????# #???????????????? ??????? | | ???????????????????# #???????????????? ??????? | | ???????????????????# #???????????????? ??????? | | ???????????????????# #????????????????# #?????? | | ???????????????????# #????????????????# #?????? | | ???????????????????# ^^###??????????????# ??????? | | ???????????????????# # #########??????# #??????? | | ???????????????????# # "" %######## #??????? | | ???????????????????# # m/!||[ | |#??????? | | ????????????##+##### # %!=########|#??????? | | ????????????# # ==#??????# #??????? | | ????????????# / @ [%#??????# #??????? | | ????????????# # l *! *[#??#####+###????? | | ????????????# u######## ==%=%=#??# #????? | | ????????????# ????????# *%= ! #??# #????? | | ????????????# ?????????##### ## #??# #????? | | ????????????#??????????????? ? ?# #????? | | ????????????????????????????? ] ? # #????? | | ????????????????????????????? # #????? | | ?????????????????????????????? # #????? | | ??????????????????????????????? # #????? | | ???????????????????????????????u # #????? | | ???????????????????????????????? # #????? | | ?????????????????????????????????##?# * #????? | | ????????????????????????????????????######+##????? | | ?????????????????????????????????????????[% ?????? | | ????????????????????????????????????????? ?????? | | ???????????????????????????????????????? ????? | | ????????????????????????????????????????##+##????? | | ?????????????????????????????????????????? ?????? | | ??????????????????????????????????????????" ?????? | | ??????????????????????????????????????????" ?????? | | ??????????????????????????????????????????? ?????? | | ?????????????????????????????????????????????????? | | ?????????????????????????????????????????????????? | | ?????????????????????????????????????????????????? | +----------------------------------------------------+ Best States ------------- Heat Dissipation 28 Energy Generation 14 Energy Capacity 250 Matter Stores 332 Matter Capacity 400 Sight Range 16 Terrain Scan Range 14 Terrain Scan Density 10 Evasion (%) 55 Item Schematics ----------------- None Robot Schematics ------------------ None Fabricated ------------ Nothing Alien Tech Used ----------------- None Achievements -------------- None Challenges ------------ None Game ------ Seed SwarmInsulatedMachine Manual? 0 Play Time 00:16:37 Cumulative 0.8 hours Start 2024.04.07 @ 20:36:23 End 2024.04.07 @ 20:54:00 Sessions 1 Manual Loads 0 Difficulty Rogue Special Mode None Game No. 2 Rogue 2 Adventurer 0 Explorer 0 Win Type - Total 0 Types 0/0/0/0/0/0/0/0/0 Lore% 0 Gallery% 4 Achievement% 2 Wizard Run 0 Options --------- Layout 0 ASCII 0 Keyboard 1 Movement Numpad Keybinds 0 Fullscreen 1 Font 18/SmallcapsGlow Map View 76x50 Zoom Use 0% Tactical HUD 0 Map Filters NONE Filters NONE Steam 1 RUN: b419068f-d592-4b4d-bcbf-3541916eb8b1